bitfinex-derivatives/quotes_BNBF0:USTF0_20250523
["timestamp","ask_amount","ask_price","bid_price","bid_amount"]
[1748041340380,1.0792705,659.96,659.13,1.4286041]
[1748041340577,1.0792705,659.95,659.13,1.4286041]
[1748041340779,1.0792705,659.94,659.13,1.4286041]
[1748041341077,1.0792705,659.93,659.13,1.4286041]
[1748041341278,1.11581188,660.08,659.13,1.4286041]
[1748041341574,1.11581188,659.98,659.15,1.4286041]
[1748041341772,1.0795143,659.97,659.15,1.4286041]
[1748041343974,0.46808549,659.96,659.15,1.4286041]
[1748041344177,1.54759979,659.95,659.15,1.4286041]
[1748041344376,1.54759979,659.94,659.15,1.4286041]
[1748041344576,1.54759979,659.93,659.15,1.4286041]
[1748041344775,1.54759979,659.92,659.15,1.4286041]
[1748041344979,1.54759979,659.91,659.15,1.4286041]
[1748041345280,1.0795143,659.9,658.98,1.4286041]
[1748041345580,1.38259511,659.89,658.98,1.4286041]
[1748041345777,1.3825997,659.88,658.98,1.4286041]
[1748041345983,1.0795143,659.87,658.98,1.4286041]
[1748041346181,1.0795143,659.86,658.98,1.4286041]
[1748041346378,0.3030854,659.88,658.98,1.4286041]
[1748041346579,1.07936191,659.87,658.98,1.4286041]
[1748041346780,1.07936191,659.86,658.98,1.4286041]
[1748041346980,0.3030854,659.88,658.98,1.4286041]
[1748041347176,1.07936543,659.87,658.98,1.4286041]
[1748041347379,1.07936543,659.86,658.98,1.4286041]
[1748041347580,1.07936543,659.85,658.98,1.4286041]
[1748041347777,0.3030854,659.88,658.98,1.4286041]
[1748041347976,1.07922619,659.87,658.91,1.4286041]
[1748041348180,1.07922619,659.86,658.91,1.4286041]
[1748041348375,0.3030854,659.88,658.91,1.4286041]
[1748041348582,1.0790969,659.87,658.91,1.4286041]
[1748041348778,1.0790969,659.86,658.91,1.4286041]
[1748041348981,0.3030854,659.88,658.91,1.4286041]
[1748041349277,1.07910243,659.87,658.91,1.4286041]
[1748041349577,1.07910243,659.86,658.91,1.4286041]
[1748041349780,0.3030854,659.88,658.91,1.4286041]
[1748041349978,1.07898694,659.87,658.91,1.4286041]
[1748041350283,0.3030854,659.88,658.91,1.4286041]
[1748041350483,1.07889573,659.87,658.91,1.4286041]
[1748041350681,0.3030854,659.88,658.91,1.4286041]
[1748041351084,0.3030854,659.88,658.93,1.4286041]
[1748041353886,0.3030854,659.88,659.07,1.4286041]
[1748041357688,0.3030854,659.88,659.12,1.4286041]
[1748041361388,0.3030854,659.88,659.09,1.4286041]
[1748041363693,0.3030854,659.88,659.11,1.4286041]
[1748041366594,0.3030854,659.88,659.14,1.4286041]
[1748041369400,0.3030854,659.88,659.13,1.4286041]
[1748041372200,0.3030854,659.88,659.16,1.4286041]
[1748041375199,0.3030854,659.88,658.92,1.4286041]
[1748041378397,1.08075989,659.87,658.92,1.4286041]
[1748041378602,0.3030854,659.88,658.92,1.4286041]
[1748041378802,1.08070832,659.87,658.92,1.4286041]
[1748041379102,0.3030854,659.88,658.92,1.4286041]
[1748041379403,1.08070061,659.87,658.92,1.4286041]
[1748041379602,0.3030854,659.88,658.92,1.4286041]
[1748041381104,0.3030854,659.88,659.12,1.4286041]
[1748041383407,1.11581188,660.12,659.12,1.4286041]
[1748041384609,1.11581188,660.32,659.49,1.4286041]
[1748041384807,1.0803981,660.31,659.49,1.4286041]
[1748041385107,1.0803981,660.3,659.49,1.4286041]
[1748041385306,1.11581188,660.32,659.49,1.4286041]
[1748041388313,1.11581188,660.39,659.55,1.4286041]
[1748041388513,1.07954539,660.38,659.55,1.4286041]
[1748041388714,1.07954539,660.37,659.55,1.4286041]
[1748041388914,1.11581188,660.39,659.55,1.4286041]
[1748041392223,1.11581188,660.57,659.44,1.4286041]
[1748041392518,1.84789492,660.56,659.44,1.4286041]
[1748041392814,1.8478995,660.55,659.44,1.4286041]
[1748041393015,1.84790409,660.54,659.44,1.4286041]
[1748041393222,1.38078303,660.53,659.44,1.4286041]
[1748041393414,1.07799588,660.52,659.44,1.4286041]
[1748041393612,1.07799588,660.51,659.44,1.4286041]
[1748041393814,1.07799588,660.5,659.44,1.4286041]
[1748041394117,1.07721339,660.49,659.44,1.4286041]
[1748041394313,1.07721339,660.48,659.44,1.4286041]
[1748041394517,1.07721339,660.47,659.44,1.4286041]
[1748041394719,0.30278715,660.53,659.44,1.4286041]
[1748041394919,1.07686661,660.52,659.44,1.4286041]
[1748041395219,1.07686661,660.51,659.39,1.4286041]
[1748041395615,0.30278715,660.53,659.39,1.4286041]
[1748041395814,1.07635506,660.52,659.39,1.4286041]
[1748041396018,1.07635506,660.51,659.39,1.4286041]
[1748041396219,1.07635506,660.5,659.39,1.4286041]
[1748041396519,1.07635506,660.49,659.39,1.4286041]
[1748041396817,1.07635506,660.48,659.39,1.4286041]
[1748041397014,1.07635506,660.47,659.39,1.4286041]
[1748041397215,1.07635506,660.46,659.39,1.4286041]
[1748041397419,1.07635506,660.45,659.39,1.4286041]
[1748041397619,1.07568228,660.44,659.39,1.4286041]
[1748041397818,1.07568228,660.43,659.39,1.4286041]
[1748041398021,0.30278715,660.53,659.39,1.4286041]
[1748041398321,1.54172281,660.52,659.39,1.4286041]
[1748041398521,1.84451913,660.51,659.39,1.4286041]
[1748041398715,1.37841173,660.5,659.39,1.4286041]
[1748041398916,1.37841632,660.49,659.39,1.4286041]
[1748041399115,1.3784209,660.48,659.39,1.4286041]
[1748041399319,1.37842549,660.47,659.39,1.4286041]
[1748041399521,1.37843007,660.46,659.39,1.4286041]
[1748041399718,1.37843466,660.45,659.39,1.4286041]
[1748041399916,1.07561083,660.44,659.39,1.4286041]
[1748041400119,1.07561083,660.43,659.39,1.4286041]
[1748041400316,0.30282383,660.45,659.39,1.4286041]
[1748041400615,1.07518849,660.44,659.39,1.4286041]
[1748041400916,1.07518849,660.43,659.39,1.4286041]
[1748041401119,0.30282383,660.45,659.39,1.4286041]
[1748041401317,1.07511843,660.44,659.39,1.4286041]
[1748041401522,1.54095176,660.43,659.39,1.4286041]
[1748041401722,1.54091539,660.42,659.39,1.4286041]
[1748041401924,1.54090799,660.41,659.39,1.4286041]
[1748041402125,1.54089141,660.4,659.39,1.4286041]
[1748041402424,1.54089141,660.39,659.39,1.4286041]
[1748041402625,1.54088591,660.38,659.39,1.4286041]
[1748041402825,1.84374642,660.37,659.39,1.4286041]
[1748041403024,1.54083918,660.36,659.39,1.4286041]
[1748041403320,1.84370887,660.35,659.39,1.4286041]
[1748041403525,1.84371345,660.34,659.39,1.4286041]
[1748041403725,1.84371804,660.33,659.39,1.4286041]
[1748041403917,1.54083918,660.32,659.39,1.4286041]
[1748041404123,1.84372721,660.31,659.39,1.4286041]
[1748041404326,1.8437318,660.3,659.39,1.4286041]
[1748041404525,1.84373639,660.29,659.39,1.4286041]
[1748041404725,1.84347928,660.28,659.39,1.4286041]
[1748041404926,1.84348387,660.27,659.39,1.4286041]
[1748041405126,1.84348846,660.26,659.39,1.4286041]
[1748041405424,1.84349305,660.25,659.39,1.4286041]
[1748041405626,1.84349764,660.24,659.39,1.4286041]
[1748041405826,1.84350222,660.23,659.39,1.4286041]
[1748041406121,1.11581188,660.21,659.02,1.4286041]
[1748041406325,1.3777481,660.2,659.02,1.4286041]
[1748041406519,1.37775269,660.19,659.02,1.4286041]
[1748041406720,1.37775728,660.18,659.02,1.4286041]
[1748041406924,1.37776186,660.17,659.02,1.4286041]
[1748041407127,1.0748096,660.16,659.02,1.4286041]
[1748041407326,0.30296144,660.15,659.02,1.4286041]
[1748041407829,0.988451,660.14,659.02,1.4286041]
[1748041408128,0.30297062,660.13,659.02,1.4286041]
[1748041409629,0.30297062,660.13,659.13,1.4286041]
[1748041412131,0.30297062,660.13,659.16,1.4286041]
[1748041415733,0.30297062,660.13,658.47,0.30373441]
[1748041415734,0.30297062,660.13,659.15,1.4286041]
[1748041418437,1.07666432,660.12,659.15,1.4286041]
[1748041418637,0.30297062,660.13,659.15,1.4286041]
[1748041418937,0.30297062,660.13,659.0,1.4286041]
[1748041421338,1.0769267,660.12,659.0,1.4286041]
[1748041421532,1.37995579,660.11,659.0,1.4286041]
[1748041421733,0.3029798,660.11,659.0,1.4286041]
[1748041421935,0.3029798,660.11,659.11,1.4286041]
[1748041423837,1.07728989,660.1,659.11,1.4286041]
[1748041424041,0.3029798,660.11,659.11,1.4286041]
[1748041424241,1.07728376,660.1,659.11,1.4286041]
[1748041424436,1.07728376,660.09,659.11,1.4286041]
[1748041424638,0.3029798,660.11,659.11,1.4286041]
[1748041424838,1.07731758,660.1,659.11,1.4286041]
[1748041425036,1.07731758,660.09,659.08,1.4286041]
[1748041425236,0.3029798,660.11,659.08,1.4286041]
[1748041427242,1.07770546,660.1,659.08,1.4286041]
[1748041427440,0.3029798,660.11,659.08,1.4286041]
[1748041427642,1.07779586,660.1,659.08,1.4286041]
[1748041427941,0.3029798,660.11,659.08,1.4286041]
[1748041428138,1.07775421,660.1,659.08,1.4286041]
[1748041428342,0.3029798,660.11,659.08,1.4286041]
[1748041428539,1.077777,660.1,659.1,1.4286041]
[1748041428736,0.3029798,660.11,659.1,1.4286041]
[1748041428938,1.0778838,660.1,659.1,1.4286041]
[1748041429138,0.3029798,660.11,659.1,1.4286041]
[1748041429437,1.07787191,660.1,659.1,1.4286041]
[1748041429641,0.3029798,660.11,659.1,1.4286041]
[1748041429842,1.07816017,660.1,659.1,1.4286041]
[1748041430043,0.3029798,660.11,659.1,1.4286041]
[1748041430244,1.07822333,660.1,659.1,1.4286041]
[1748041430446,0.3029798,660.11,659.1,1.4286041]
[1748041430644,1.07832791,660.1,659.1,1.4286041]
[1748041430843,1.07831982,660.09,659.1,1.4286041]
[1748041431041,0.3029798,660.11,659.1,1.4286041]
[1748041431240,1.078341,660.1,659.1,1.4286041]
[1748041431446,1.54561636,660.09,659.12,1.4286041]
[1748041431645,1.381182,660.08,659.12,1.4286041]
[1748041431846,1.38118659,660.07,659.12,1.4286041]
[1748041432046,1.38119118,660.06,659.12,1.4286041]
[1748041432346,1.38119577,660.05,659.12,1.4286041]
[1748041432547,1.38120036,660.04,659.12,1.4286041]
[1748041432748,1.38120495,660.03,659.12,1.4286041]
[1748041432944,1.38120955,660.02,659.12,1.4286041]
[1748041433149,1.38121414,660.01,659.12,1.4286041]
[1748041433344,0.3030303,660.0,659.12,1.4286041]
[1748041434748,0.3030303,660.0,659.07,1.4286041]
[1748041437358,0.3030303,660.0,659.04,1.4286041]
[1748041440354,0.3030303,660.0,659.06,1.4286041]
[1748041443856,0.3030303,660.0,659.01,1.4286041]
[1748041446456,0.3030303,660.0,659.07,1.4286041]
[1748041449258,0.3030303,660.0,659.06,1.4286041]
[1748041453460,1.08027116,659.99,659.06,1.4286041]
[1748041453660,0.3030303,660.0,659.06,1.4286041]
[1748041455861,0.3030303,660.0,659.17,1.4286041]
[1748041456967,1.08142594,659.99,659.17,1.4286041]
[1748041457264,0.3030303,660.0,659.17,1.4286041]
[1748041457562,1.08143545,659.99,659.17,1.4286041]
[1748041457764,0.3030303,660.0,659.17,1.4286041]
[1748041458064,1.08175964,659.99,659.17,1.4286041]
[1748041458260,0.3030303,660.0,659.17,1.4286041]
[1748041458459,1.08178375,659.99,659.17,1.4286041]
[1748041458658,1.08178375,659.98,659.17,1.4286041]
[1748041458861,0.3030303,660.0,659.17,1.4286041]
[1748041459063,1.0821082,659.99,659.17,1.4286041]
[1748041459261,1.0821082,659.98,659.17,1.4286041]
[1748041459463,0.3030303,660.0,659.17,1.4286041]
[1748041459663,1.11581188,659.98,659.21,1.4286041]
[1748041459866,1.08213234,659.97,659.21,1.4286041]
[1748041462472,2.19794422,659.97,659.24,1.4286041]
[1748041462675,1.11581188,659.97,659.24,1.4286041]
[1748041465773,1.11581188,659.97,659.22,1.4286041]
[1748041465974,0.3030303,660.0,659.22,1.4286041]
[1748041470678,1.08452988,659.99,659.22,1.4286041]
[1748041470878,1.08451256,659.98,659.22,1.4286041]
[1748041471077,0.3030303,660.0,659.22,1.4286041]
[1748041471275,1.084573,659.99,659.22,1.4286041]
[1748041471478,1.084573,659.98,659.22,1.4286041]
[1748041471779,0.3030303,660.0,659.21,1.4286041]
[1748041472174,1.08455583,659.99,659.21,1.4286041]
[1748041472375,1.08455583,659.98,659.21,1.4286041]
[1748041472576,0.3030303,660.0,659.21,1.4286041]
[1748041472777,1.08469174,659.99,659.21,1.4286041]
[1748041472974,1.08469174,659.98,659.21,1.4286041]
[1748041473175,0.3030303,660.0,659.21,1.4286041]
[1748041473375,1.08471441,659.99,659.21,1.4286041]
[1748041473577,0.3030303,660.0,659.21,1.4286041]
[1748041474483,0.3030303,660.0,659.31,1.4286041]
[1748041477585,0.3030303,660.0,659.36,1.4286041]
[1748041481685,0.3030303,660.0,659.34,1.4286041]
[1748041485082,0.3030303,660.0,659.39,1.4286041]
[1748041486988,1.11581188,660.21,659.39,1.4286041]
[1748041487286,1.08355164,660.2,659.39,1.4286041]
[1748041487483,1.08355164,660.19,659.42,1.4286041]
[1748041487688,1.08355164,660.18,659.42,1.4286041]
[1748041487988,1.08355164,660.17,659.42,1.4286041]
[1748041488287,1.11581188,660.22,659.42,1.4286041]
[1748041490789,1.11581188,660.36,659.5,1.4286041]
[1748041490986,1.08301167,660.35,659.5,1.4286041]
[1748041491185,1.08301167,660.34,659.5,1.4286041]
[1748041491386,1.08301167,660.33,659.5,1.4286041]
[1748041491589,1.08278382,660.32,659.5,1.4286041]
[1748041491888,1.08279743,660.31,659.5,1.4286041]
[1748041492189,1.11581188,660.36,659.5,1.4286041]
[1748041492387,1.08271266,660.35,659.5,1.4286041]
[1748041492588,1.08271266,660.34,659.5,1.4286041]
[1748041492787,1.08271266,660.33,659.5,1.4286041]
[1748041492988,1.08271266,660.32,659.5,1.4286041]
[1748041493185,1.11581188,660.36,659.5,1.4286041]
[1748041493389,1.08256958,660.35,659.5,1.4286041]
[1748041493589,1.08256958,660.34,659.5,1.4286041]
[1748041493790,1.08256958,660.33,659.46,1.4286041]
[1748041493989,1.08256958,660.32,659.46,1.4286041]
[1748041494187,1.11581188,660.39,659.46,1.4286041]
[1748041494391,1.55135604,660.38,659.46,1.4286041]
[1748041494594,1.08241361,660.37,659.46,1.4286041]
[1748041494795,1.08241361,660.36,659.46,1.4286041]
[1748041495096,1.08241361,660.35,659.46,1.4286041]
[1748041495297,1.08241361,660.34,659.46,1.4286041]
[1748041495495,1.08241361,660.33,659.46,1.4286041]
[1748041495697,1.11581188,660.39,659.46,1.4286041]
[1748041495892,1.08231203,660.38,659.46,1.4286041]
[1748041496097,1.08231203,660.37,659.46,1.4286041]
[1748041496397,1.08231203,660.36,659.45,1.4286041]
[1748041496597,1.08231203,660.35,659.45,1.4286041]
[1748041496796,1.08231203,660.34,659.45,1.4286041]
[1748041496998,1.08231203,660.33,659.45,1.4286041]
[1748041497198,1.11581188,660.4,659.45,1.4286041]
[1748041497399,1.5508797,660.39,659.45,1.4286041]
[1748041497599,1.08208143,660.38,659.45,1.4286041]
[1748041497800,1.08208143,660.37,659.45,1.4286041]
[1748041497998,1.08208143,660.36,659.45,1.4286041]
[1748041498298,1.08208143,660.35,659.45,1.4286041]
[1748041498494,1.08208143,660.34,659.45,1.4286041]
[1748041498700,1.11581188,660.4,659.45,1.4286041]
[1748041498901,1.85359499,660.39,659.45,1.4286041]
[1748041499199,1.38484215,660.38,659.45,1.4286041]
[1748041499400,1.38484673,660.37,659.49,1.4286041]
[1748041499700,1.08198622,660.36,659.49,1.4286041]
[1748041499897,1.08198622,660.35,659.49,1.4286041]
[1748041500100,1.08198622,660.34,659.49,1.4286041]
[1748041500301,0.30286051,660.37,659.49,1.4286041]
[1748041500499,1.08194089,660.36,659.49,1.4286041]
[1748041500697,1.08194089,660.35,659.49,1.4286041]
[1748041500897,1.08194089,660.34,659.49,1.4286041]
[1748041501201,0.30286051,660.37,659.49,1.4286041]
[1748041501401,1.08190924,660.36,659.49,1.4286041]
[1748041501600,1.08190924,660.35,659.49,1.4286041]
[1748041501800,1.08190924,660.34,659.53,1.4286041]
[1748041502002,1.11581188,660.36,659.53,1.4286041]
[1748041502202,1.85338645,660.35,659.53,1.4286041]
[1748041502399,1.55050781,660.34,659.53,1.4286041]
[1748041502602,1.55050781,660.33,659.53,1.4286041]
[1748041502799,1.85339126,660.32,659.53,1.4286041]
[1748041503002,1.85283121,660.31,659.53,1.4286041]
[1748041503204,1.8528358,660.3,659.53,1.4286041]
[1748041503404,1.85284039,660.29,659.53,1.4286041]
[1748041503604,1.85284497,660.28,659.53,1.4286041]
[1748041503804,1.85286009,660.27,659.53,1.4286041]
[1748041504003,1.85286468,660.26,659.53,1.4286041]
[1748041504305,1.85286927,660.25,659.53,1.4286041]
[1748041504508,1.54995371,660.24,659.53,1.4286041]
[1748041504709,1.85287844,660.23,659.53,1.4286041]
[1748041504902,1.54995371,660.22,659.53,1.4286041]
[1748041505206,1.85288762,660.21,659.53,1.4286041]
[1748041505406,1.54995371,660.2,659.53,1.4286041]
[1748041505607,1.54995371,660.19,659.53,1.4286041]
[1748041505908,0.30293391,660.21,659.53,1.4286041]
[1748041505909,1.85290139,660.18,659.53,1.4286041]
[1748041506107,1.11581188,660.12,659.2,1.4286041]
[1748041506305,1.85239714,660.11,659.2,1.4286041]
[1748041506505,1.85240173,660.1,659.2,1.4286041]
[1748041506702,1.54941734,660.09,659.2,1.4286041]
[1748041507006,1.54941734,660.08,659.2,1.4286041]
[1748041507202,1.08105944,660.07,659.2,1.4286041]
[1748041507505,1.5493178,660.06,659.2,1.4286041]
[1748041507706,1.5493178,660.05,659.2,1.4286041]
[1748041508001,1.5493178,660.04,659.2,1.4286041]
[1748041508201,1.85233432,660.03,659.2,1.4286041]
[1748041508505,1.85233892,660.02,659.2,1.4286041]
[1748041508701,1.85234351,660.01,659.2,1.4286041]
[1748041508906,1.5493178,660.0,659.2,1.4286041]
[1748041509105,1.5490834,659.99,659.2,1.4286041]
[1748041509308,1.5490834,659.98,659.2,1.4286041]
[1748041509509,1.11581188,659.91,659.0,1.4286041]
[1748041509704,1.5490834,659.9,659.0,1.4286041]
[1748041509901,1.5490834,659.89,659.0,1.4286041]
[1748041510103,1.11581188,659.91,659.0,1.4286041]
[1748041510104,1.5490834,659.88,659.0,1.4286041]
[1748041510308,1.5490834,659.87,659.0,1.4286041]
[1748041510510,1.5490834,659.86,659.0,1.4286041]
[1748041510702,1.5490834,659.85,659.0,1.4286041]
[1748041510906,1.54690911,659.84,659.0,1.4286041]
[1748041511206,1.54690911,659.83,659.0,1.4286041]
[1748041511405,1.54690911,659.82,659.0,1.4286041]
[1748041511605,1.07929799,659.81,659.0,1.4286041]
[1748041511812,1.07929799,659.8,659.0,1.4286041]
[1748041512012,1.07929799,659.79,658.83,1.4286041]
[1748041512210,1.11581188,659.8,658.83,1.4286041]
[1748041512412,1.07888614,659.79,658.83,1.4286041]
[1748041512709,1.5461196,659.78,658.83,1.4286041]
[1748041512911,1.07888614,659.77,658.83,1.4286041]
[1748041513112,1.54608692,659.76,658.83,1.4286041]
[1748041513312,1.54608692,659.75,658.83,1.4286041]
[1748041513511,1.07888614,659.74,658.83,1.4286041]
[1748041513714,1.07888614,659.73,658.83,1.4286041]
[1748041513912,1.07888614,659.72,658.83,1.4286041]
[1748041514116,1.07888614,659.71,658.83,1.4286041]
[1748041514319,1.07766196,659.7,658.83,1.4286041]
[1748041514518,1.07766196,659.69,658.83,1.4286041]
[1748041514715,1.07766196,659.68,658.67,1.4286041]
[1748041514915,1.11581188,659.73,658.67,1.4286041]
[1748041515114,1.07714878,659.72,658.67,1.4286041]
[1748041515319,1.07714878,659.71,658.67,1.4286041]
[1748041515518,1.07714878,659.7,658.67,1.4286041]
[1748041515719,1.07714878,659.69,658.67,1.4286041]
[1748041515922,1.11581188,659.73,658.67,1.4286041]
[1748041516123,1.07664447,659.72,658.67,1.4286041]
[1748041516317,1.07664447,659.71,658.67,1.4286041]
[1748041516521,1.07664447,659.7,658.67,1.4286041]
[1748041516717,1.07664447,659.69,658.67,1.4286041]
[1748041516916,1.11581188,659.73,658.67,1.4286041]
[1748041517217,1.37938928,659.72,658.67,1.4286041]
[1748041517421,1.37939388,659.71,658.67,1.4286041]
[1748041517622,1.37939847,659.7,658.67,1.4286041]
[1748041517918,1.37940307,659.69,658.58,1.4286041]
[1748041518119,1.11581188,659.76,658.58,1.4286041]
[1748041518120,1.3788417,659.68,658.58,1.4286041]
[1748041518323,1.3788463,659.67,658.58,1.4286041]
[1748041518525,1.07566441,659.66,658.58,1.4286041]
[1748041518726,0.30318189,659.67,658.58,1.4286041]
[1748041519026,1.07519594,659.66,658.58,1.4286041]
[1748041519230,1.07498356,659.65,658.58,1.4286041]
[1748041519528,0.30318189,659.67,658.58,1.4286041]
[1748041520629,0.30318189,659.67,658.47,0.30373441]
[1748041526636,0.30318189,659.67,658.71,1.4286041]
[1748041529838,0.30318189,659.67,658.91,1.4286041]
[1748041533139,1.11581188,660.19,658.91,1.4286041]
[1748041533339,1.37647968,660.18,658.91,1.4286041]
[1748041533539,1.37648426,660.17,658.91,1.4286041]
[1748041533839,1.37634869,660.16,658.91,1.4286041]
[1748041534039,1.07339184,660.15,658.91,1.4286041]
[1748041534239,1.07339184,660.14,658.91,1.4286041]
[1748041534440,0.30295685,660.16,658.91,1.4286041]
[1748041534640,1.07329288,660.15,658.91,1.4286041]
[1748041534833,1.07329288,660.14,658.91,1.4286041]
[1748041535038,1.07329288,660.13,658.91,1.4286041]
[1748041535233,0.30295685,660.16,658.91,1.4286041]
[1748041535436,1.07315734,660.15,658.91,1.4286041]
[1748041535640,1.07315734,660.14,658.91,1.4286041]
[1748041535834,0.30295685,660.16,658.91,1.4286041]
[1748041536038,1.07328236,660.15,658.91,1.4286041]
[1748041536235,1.07328236,660.14,658.91,1.4286041]
[1748041536541,0.30295685,660.16,658.91,1.4286041]
[1748041536738,1.07333735,660.15,658.91,1.4286041]
[1748041536942,1.07333735,660.14,658.91,1.4286041]
[1748041537244,0.30295685,660.16,658.91,1.4286041]
[1748041537543,1.07328086,660.15,658.91,1.4286041]
[1748041537841,1.37624689,660.14,658.91,1.4286041]
[1748041538042,1.37625148,660.13,658.95,1.4286041]
[1748041538237,1.07328086,660.12,658.95,1.4286041]
[1748041538441,1.07328086,660.11,658.95,1.4286041]
[1748041538642,1.07328086,660.1,658.95,1.4286041]
[1748041538941,1.07304887,660.09,658.95,1.4286041]
[1748041539142,1.07304887,660.08,658.95,1.4286041]
[1748041539342,1.07304887,660.07,658.95,1.4286041]
[1748041539542,1.07304887,660.06,658.95,1.4286041]
[1748041539742,1.07304887,660.05,658.95,1.4286041]
[1748041540038,1.07304887,660.04,658.95,1.4286041]
[1748041540242,1.07304887,660.03,658.95,1.4286041]
[1748041540445,0.30297062,660.13,658.95,1.4286041]
[1748041540745,1.53768003,660.12,658.95,1.4286041]
[1748041540947,1.53768003,660.11,658.95,1.4286041]
[1748041541142,1.07285394,660.1,658.71,1.4286041]
[1748041541340,1.07285394,660.1,658.72,0.30361914]
[1748041544250,1.07279746,660.09,658.72,0.30361914]
[1748041544442,1.11581188,660.11,658.72,0.30361914]
[1748041544443,1.07279746,660.08,658.72,0.30361914]
[1748041544642,1.07279746,660.07,658.72,0.30361914]
[1748041544845,1.37580021,660.06,658.72,0.30361914]
[1748041545047,1.3758048,660.05,658.72,0.30361914]
[1748041545246,1.37580939,660.04,658.72,0.30361914]
[1748041545450,1.07279746,660.03,658.72,0.30361914]
[1748041545648,0.30302112,660.02,658.72,0.30361914]
[1748041545844,1.07279746,660.01,658.72,0.30361914]
[1748041546049,1.37600627,660.0,658.72,0.30361914]
[1748041546249,0.3030303,660.0,658.72,0.30361914]
[1748041546552,1.07304834,659.99,658.72,0.30361914]
[1748041546753,0.3030303,660.0,658.72,0.30361914]
[1748041547048,1.07304746,659.99,658.72,0.30361914]
[1748041547253,1.07304746,659.98,658.72,0.30361914]
[1748041547553,0.3030303,660.0,658.72,0.30361914]
[1748041547554,1.07304746,659.97,658.72,0.30361914]
[1748041547854,1.07299305,659.96,658.72,0.30361914]
[1748041548052,1.07299305,659.95,658.72,0.30361914]
[1748041548352,1.07299305,659.94,658.72,0.30361914]
[1748041548545,1.07299305,659.93,658.72,0.30361914]
[1748041548750,1.07299305,659.92,658.72,0.30361914]
[1748041549053,1.07302652,659.91,658.72,0.30361914]
[1748041549249,1.07302652,659.9,658.72,0.30361914]
[1748041549453,0.3030303,660.0,658.72,0.30361914]
[1748041549653,1.07315564,659.99,658.72,0.30361914]
[1748041549855,1.5381263,659.98,658.72,0.30361914]
[1748041550052,1.5381263,659.97,658.72,0.30361914]
[1748041550252,1.5381263,659.96,658.72,0.30361914]
[1748041550452,1.07315564,659.95,658.72,0.30361914]
[1748041550649,1.07315564,659.94,658.72,0.30361914]
[1748041550949,1.07315564,659.93,658.72,0.30361914]
[1748041551254,1.07352458,659.92,658.72,0.30361914]
[1748041551454,1.07352458,659.91,658.72,0.30361914]
[1748041551754,1.07352458,659.9,658.72,0.30361914]
[1748041551955,1.07352458,659.89,658.72,0.30361914]
[1748041552155,1.07352458,659.88,658.72,0.30361914]
[1748041552352,1.07352458,659.87,658.72,0.30361914]
[1748041552556,1.07352458,659.86,658.72,0.30361914]
[1748041552754,1.11581188,659.95,658.72,0.30361914]
[1748041552956,1.07376978,659.94,658.72,0.30361914]
[1748041553151,1.07376978,659.93,658.72,0.30361914]
[1748041553355,1.07376978,659.92,658.72,0.30361914]
[1748041553556,1.07376978,659.91,658.72,0.30361914]
[1748041553755,1.11581188,659.95,658.72,0.30361914]
[1748041553756,1.07376978,659.9,658.72,0.30361914]
[1748041553956,1.07376978,659.89,658.72,0.30361914]
[1748041554157,1.07376978,659.88,658.72,0.30361914]
[1748041554356,1.07376978,659.87,658.72,0.30361914]
[1748041554556,1.11581188,659.95,658.72,0.30361914]
[1748041554752,1.07439396,659.94,658.72,0.30361914]
[1748041554952,1.07439396,659.93,658.72,0.30361914]
[1748041555157,1.07439396,659.92,658.72,0.30361914]
[1748041555455,1.07439396,659.91,658.72,0.30361914]
[1748041555656,1.11581188,659.95,658.72,0.30361914]
[1748041555956,1.37780542,659.94,658.72,0.30361914]
[1748041556258,1.37781001,659.93,658.72,0.30361914]
[1748041556457,0.30306244,659.93,658.72,0.30361914]
[1748041557161,0.30306244,659.93,658.86,1.4286041]
[1748041559260,0.30306244,659.93,658.87,1.4286041]
[1748041559464,1.07656586,659.92,658.87,1.4286041]
[1748041559661,1.37961833,659.91,658.87,1.4286041]
[1748041559861,0.30307163,659.91,658.87,1.4286041]
[1748041560359,1.07658057,659.9,658.87,1.4286041]
[1748041560558,1.37966138,659.89,658.87,1.4286041]
[1748041560762,1.37966597,659.88,658.87,1.4286041]
[1748041560965,0.30309,659.87,658.87,1.4286041]
[1748041563266,0.30309,659.87,658.9,1.4286041]
[1748041566068,0.30309,659.87,659.03,1.4286041]
[1748041569669,0.30309,659.87,659.08,1.4286041]
[1748041572072,0.30309,659.87,659.07,1.4286041]
[1748041574471,1.11581188,660.3,659.26,1.4286041]
[1748041574674,1.38101928,660.29,659.26,1.4286041]
[1748041574874,1.38102386,660.28,659.26,1.4286041]
[1748041575170,1.38102845,660.27,659.26,1.4286041]
[1748041575374,1.07812207,660.26,659.26,1.4286041]
[1748041575568,1.54551719,660.25,659.26,1.4286041]
[1748041575772,1.54551719,660.24,659.26,1.4286041]
[1748041576072,1.54551719,660.23,659.26,1.4286041]
[1748041576272,1.54551719,660.22,659.26,1.4286041]
[1748041576474,1.07812207,660.21,659.26,1.4286041]
[1748041576773,0.30290638,660.27,659.26,1.4286041]
[1748041576968,0.30290638,660.27,659.12,2.13178245]
[1748041576969,1.11581188,660.25,659.12,1.4286041]
[1748041577171,1.07798013,660.24,659.12,1.4286041]
[1748041577771,0.46734434,660.23,659.12,1.4286041]